[Event "44th Chess Olympiad Open 2022"]
[Site "Chennai"]
[Date "2022.08.08"]
[Round "10.5"]
[White "Warmerdam, Max"]
[Black "Perunovic, Milos"]
[Result "1-0"]
[ECO "A31"]
[WhiteElo "2610"]
[BlackElo "2539"]
[Annotator "TA"]
[PlyCount "79"]
[EventDate "2022.07.29"]
[EventType "team-tourn"]
[EventCountry "IND"]
[SourceTitle "playchess.com"]
[Source "ChessBase"]
[SourceQuality "1"]
[WhiteTeam "Netherlands"]
[BlackTeam "Serbia"]
[WhiteTeamCountry "NED"]
[BlackTeamCountry "SRB"]
[TimeControl "40/5400+30:1800+30"]

{[%evp 10,79,24,36,42,31,45,32,46,8,21,13,27,22,27,0,0,0,0,-9,-12,-63,0,0,0,0,46,45,44,43,61,58,46,60,65,80,70,52,88,86,95,93,96,0,0,0,0,0,0,0,0,-17,0,-15,-11,-17,534,538,515,255,241,0,0,0,0,-951,1732,1487,1729,1534,2261,1764]} 1. c4 {[%emt 0:00:04]} c5 {[%emt 0:00:47]} 2. Nf3 {[%emt 0:00:07]} Nc6 {[%emt 0:02:26]} 3. Nc3 {[%emt 0:00:07]} Nf6 {[%emt 0:01:28]} 4. d4 {[%emt 0:00:46]} cxd4 {[%emt 0:00:08]} 5. Nxd4 {[%emt 0:00:05]} Qb6 {[%emt 0:05:41]} 6. e3 {[%emt 0:15:58]} g6 {[%emt 0:03:51] A31: Symmetrical English: 2 Nf3 Nf6 3 d4.} 7. Be2 {[%emt 0:01:29]} Bg7 {[%emt 0:00:17]} 8. O-O {[%emt 0:01:29]} O-O {[%emt 0:00:11] White is slightly better.} 9. a3 $5 {[%emt 0:08:13][%mdl 4] [#] Leaves trodden paths.} Qd8 $146 {[%emt 0:21:37]} ({Predecessor:} 9... d6 10. b4 Bd7 11. Bb2 Rfc8 12. c5 dxc5 13. Na4 Qc7 14. Nb5 Qb8 15. Nxc5 Be8 {0-1 (78) Meskovs,N (2565)-Alekseev,E (2623) Tallinn 2020}) 10. Qb3 {[%emt 0:07:44]} b6 {[%emt 0:02:23]} 11. Rd1 {[%emt 0:05:14] Black must now prevent Nxc6.} Bb7 {[%emt 0:02:48]} 12. Qa2 {[%emt 0:04:14]} Nxd4 {[%emt 0:10:40]} 13. exd4 {[%emt 0:00:59]} d5 {[%emt 0:00:09]} 14. Bf3 {[%emt 0:01:13]} Qd7 {[%emt 0:02:54]} 15. c5 {[%emt 0:04:32]} ({Better is} 15. cxd5 $11 Rfd8 16. Be3) 15... Ne4 {[%emt 0:11:23]} (15... bxc5 $15 16. dxc5 Rfd8) 16. Bxe4 $11 {[%emt 0:01:34]} dxe4 {[%emt 0:00:05]} 17. Be3 {[%emt 0:00:05]} e6 {[%emt 0:06:51]} (17... bxc5 $11 18. dxc5 Qc6) 18. Rac1 {[%emt 0:02:22]} Rfd8 {[%emt 0:05:33]} 19. b4 {[%emt 0:02:22]} Qe7 {[%emt 0:02:45]} 20. Qc4 {[%emt 0:07:10]} Bd5 {[%emt 0:02:54]} 21. Nxd5 {[%emt 0:04:11]} Rxd5 {[%emt 0:00:24]} 22. a4 {[%emt 0:07:27]} Rad8 {[%emt 0:05:44]} 23. c6 {[%emt 0:00:00]} Qc7 {[%emt 0:00:10]} 24. g3 {[%emt 0:05:39]} h6 {[%emt 0:13:50]} 25. Qc2 {[%emt 0:06:00]} f5 {[%emt 0:02:11]} 26. b5 {[%emt 0:12:03]} (26. h4 $1 $16) 26... g5 $1 {[%emt 0:00:00]} 27. Bd2 {[%emt 0:02:01]} Bxd4 {[%emt 0:00:00]} 28. Bc3 {[%emt 0:00:28] Hoping for Bxd4.} Bc5 {[%emt 0:00:00]} 29. Qe2 {[%emt 0:00:13]} Qf7 {[%emt 0:00:00] Prevents Qh5.} 30. Kh1 {[%emt 0:00:19]} Kh7 {[%emt 0:00:00]} 31. Be5 {[%emt 0:00:31]} Qe7 {[%emt 0:00:00]} 32. Qh5 {[%emt 0:00:49][%cal Oh1g2]} Qe8 $2 {[%emt 0:00:00][%mdl 8192]} (32... Rxe5 $2 33. Rxd8 Qxd8 34. Qf7+ Kh8 35. c7 $18) (32... Bxf2 33. c7 Rxd1+ 34. Rxd1 Rxd1+ 35. Qxd1 Qxc7 36. Bxc7 $18) (32... e3 $11 {and Black is okay.} 33. f4 g4) 33. Qxe8 $18 {[%emt 0:00:45]} Rxe8 {[%emt 0:00:00] [#]} 34. Rxd5 {[%emt 0:00:22]} (34. c7 $142 $1 {Threatens to win with Rxd5.} h5 (34... Bxf2 35. Rxd5) 35. a5) 34... exd5 {[%emt 0:00:00] [#]} 35. Rxc5 $1 {[%emt 0:00:15][%mdl 512]} bxc5 {[%emt 0:00:00] KR-KB} 36. a5 {[%emt 0:00:03]} d4 {[%emt 0:00:16]} (36... Rxe5 $2 37. b6 axb6 38. axb6 $18) 37. b6 $2 {[%emt 0:00:28][%mdl 8192]} e3 $4 {[%emt 0:01:00][%mdl 8192] [#]} ({Don't play} 37... Rxe5 38. b7 e3 39. b8=Q $18) (37... d3 $19 38. Bc3 f4) 38. fxe3 $1 {[%emt 0:00:09] White is clearly winning.} dxe3 {[%emt 0:00:28] [#]} (38... axb6 39. axb6) 39. b7 $1 {[%emt 0:00:37] White threatens Bc3 and mate.} e2 {[%emt 0:00:29]} (39... Rxe5 40. b8=Q) 40. Bc3 {[%emt 0:00:03] Weighted Error Value: White=0.39/Black=0.37} 1-0

[Event "44th Chess Olympiad Open 2022"]
[Site "Chennai"]
[Date "2022.08.08"]
[Round "10.6"]
[White "Anton Guijarro, David"]
[Black "Michalik, Peter"]
[Result "1/2-1/2"]
[ECO "D04"]
[WhiteElo "2667"]
[BlackElo "2559"]
[Annotator "TA"]
[PlyCount "61"]
[EventDate "2022.07.29"]
[EventType "team-tourn"]
[EventCountry "IND"]
[SourceTitle "playchess.com"]
[Source "ChessBase"]
[SourceQuality "1"]
[WhiteTeam "Spain"]
[BlackTeam "Czech Republic"]
[WhiteTeamCountry "ESP"]
[BlackTeamCountry "CZE"]
[TimeControl "40/5400+30:1800+30"]

{[%evp 9,61,8,4,3,20,11,21,0,20,2,33,37,38,38,45,29,39,41,45,43,35,32,44,5,23,17,12,0,0,0,0,0,0,0,0,0,0,-4,-3,-17,0,0,0,0,0,0,0,0,57,8,8,2,6,24]} 1. d4 {[%emt 0:00:06]} Nf6 {[%emt 0:00:07]} 2. Nf3 {[%emt 0:00:20]} d5 {[%emt 0:00:32]} 3. e3 {[%emt 0:00:27]} c5 {[%emt 0:01:13]} 4. Bb5+ {[%emt 0:01:04]} Bd7 {[%emt 0:00:48]} 5. Be2 {[%emt 0:00:09]} Nc6 {[%emt 0:02:49]} 6. O-O {[%emt 0:00:22] D04: Colle System.} e6 {[%emt 0:01:40]} 7. b3 {[%emt 0:00:38][%cal Bb2b3,Bb3b4][%mdl 32]} Bd6 {[%emt 0:00:55]} 8. Bb2 {[%emt 0:00:33]} O-O {[%emt 0:01:45] [#]} 9. a3 $146 {[%emt 0:04:38]} ({Predecessor:} 9. Nbd2 Qe7 10. dxc5 Bxc5 11. c4 Ba3 12. Qc1 Bxb2 13. Qxb2 Rfd8 14. a3 e5 15. cxd5 Nxd5 {½-½ (43) Artemiev,V (2731)-So,W (2760) Bucharest 2019}) 9... Re8 {[%emt 0:03:13]} 10. dxc5 {[%emt 0:04:34]} Bxc5 {[%emt 0:00:06]} 11. b4 {[%emt 0:00:28]} Bf8 {[%emt 0:04:26]} 12. c4 {[%emt 0:05:58]} dxc4 {[%emt 0:08:04]} 13. Bxc4 {[%emt 0:00:32]} a6 {[%emt 0:01:15]} 14. Nbd2 {[%emt 0:11:00]} h6 {[%emt 0:06:32]} 15. Rc1 {[%emt 0:06:50]} Qe7 {[%emt 0:08:44]} 16. Nb3 {[%emt 0:15:06]} Red8 {[%emt 0:00:28]} 17. Qe2 {[%emt 0:02:28]} e5 {[%emt 0:08:42] [#] And now ...b5 would win.} 18. e4 {[%emt 0:08:39]} (18. Nc5 {is interesting.} Bg4 19. h3 Bh5 20. g4) 18... Be6 {[%emt 0:06:42]} 19. Nc5 {[%emt 0:02:08][%cal Bb3c5,Bc5d3,Bd3f4,Bf4e6][%mdl 32]} Bxc4 {[%emt 0:00:14]} 20. Rxc4 {[%emt 0:00:21]} a5 {[%emt 0:07:19]} 21. b5 {[%emt 0:00:44]} Nd4 {[%emt 0:00:07]} 22. Nxd4 {[%emt 0:02:42]} ({Much worse is} 22. Bxd4 exd4 23. a4 Rac8 $15) 22... exd4 {[%emt 0:00:06]} 23. e5 $1 $36 {[%emt 0:03:19][%mdl 2048] White is pushing.} Nd5 {[%emt 0:07:25] aiming for ...Rac8.} ({But not} 23... b6 24. Nd3 $16) 24. Nd3 $1 {[%emt 0:10:23]} ({Much weaker is} 24. Bxd4 Nb6 25. Nxb7 Qxb7 26. Bxb6 Qxb6 $17) 24... Rac8 {[%emt 0:00:50]} 25. Rxd4 {[%emt 0:07:01]} Nc3 {[%emt 0:00:21] Inhibits Rd1.} 26. Bxc3 {[%emt 0:00:03]} Rxc3 {[%emt 0:00:07]} 27. Rxd8 {[%emt 0:00:11]} Qxd8 {[%emt 0:00:05]} 28. Nf4 {[%emt 0:00:18]} Rxa3 {[%emt 0:08:09]} (28... Bxa3 $11 29. e6 Qe8) 29. e6 {[%emt 0:00:27]} (29. g3 $14 {should be considered.}) 29... Qf6 $11 {[%emt 0:00:12]} 30. g3 {[%emt 0:01:01] Black must now prevent Rc1.} fxe6 {[%emt 0:05:36]} 31. Nxe6 {[%emt 0:01:04] Weighted Error Value: White=0.06 (flawless) /Black=0.09 (flawless)} 1/2-1/2

[Event "44th Chess Olympiad Open 2022"]
[Site "Chennai"]
[Date "2022.08.08"]
[Round "10.6"]
[White "Zwardon, Vojtech"]
[Black "Santos Latasa, Jaime"]
[Result "0-1"]
[ECO "A17"]
[WhiteElo "2503"]
[BlackElo "2675"]
[Annotator "TA"]
[PlyCount "120"]
[EventDate "2022.07.29"]
[EventType "team-tourn"]
[EventCountry "IND"]
[SourceTitle "playchess.com"]
[Source "ChessBase"]
[SourceQuality "1"]
[WhiteTeam "Czech Republic"]
[BlackTeam "Spain"]
[WhiteTeamCountry "CZE"]
[BlackTeamCountry "ESP"]
[TimeControl "40/5400+30:1800+30"]

{[%evp 9,120,8,13,1,8,7,0,4,13,-11,0,0,-23,-20,0,-12,18,20,15,-28,-8,-16,-14,-29,-16,-20,-21,-16,0,0,0,0,13,-15,-14,-10,0,-34,-29,-39,0,-13,-16,-75,-82,-85,-81,-57,-74,-108,-123,-191,-155,-285,-219,-362,-348,-335,-206,-187,-199,-277,-254,-254,-254,-254,-254,-254,-254,-254,-204,-204,-186,-186,-179,-178,-129,-129,-129,-129,-129,-129,-129,-129,-129,-103,-75,-70,0,-217,-217,-217,-174,-343,-307,-337,-330,-489,-489,-489,-489,-489,-488,-862,-670,-593,-782,-720,-606,-6103,-6103,-29980,-29978]} 1. c4 {[%emt 0:00:02]} e6 {[%emt 0:00:08]} 2. Nf3 {[%emt 0:00:02]} d5 {[%emt 0:00:11]} 3. e3 {[%emt 0:00:03]} Nf6 {[%emt 0:00:09]} 4. Nc3 {[%emt 0:00:03]} Bd6 {[%emt 0:00:17]} 5. b3 {[%emt 0:02:49]} O-O {[%emt 0:00:13]} 6. Bb2 {[%emt 0:00:07] A17: English Opening: 1...Nf6 with ...Bb4.} Re8 $1 {[%emt 0:00:02][%mdl 4] is more profitable than 6...c6 at the moment.} 7. Rc1 {[%emt 0:07:52]} a6 {[%emt 0:03:13]} 8. d4 {[%emt 0:07:14] The position is equal.} b6 {[%emt 0:00:34] [#]} 9. c5 $146 {[%emt 0:01:35]} ({Predecessor:} 9. g3 Bb7 10. cxd5 Nxd5 11. Nxd5 Bxd5 12. Bg2 Bb4+ 13. Bc3 Ba3 14. Ra1 a5 15. O-O {0-1 (30) Olivier,P (2215)-Anton Guijarro,D (2651) Struga 2021}) 9... bxc5 {[%emt 0:01:00]} 10. dxc5 {[%emt 0:03:51]} Bf8 {[%emt 0:00:06]} 11. Be2 {[%emt 0:17:03]} a5 {[%emt 0:10:02]} 12. O-O {[%emt 0:02:04]} Ba6 {[%emt 0:01:04]} 13. Na4 {[%emt 0:04:17]} c6 {[%emt 0:04:58]} 14. Qc2 {[%emt 0:11:03]} Nbd7 {[%emt 0:06:04]} (14... Nfd7 {looks sharper.} 15. Ne5 Nxe5 16. Bxe5 Nd7) 15. Bxa6 {[%emt 0:00:05]} Rxa6 {[%emt 0:00:08]} 16. Ne5 {[%emt 0:00:38]} Nxe5 {[%emt 0:01:14]} 17. Bxe5 {[%emt 0:00:02]} Nd7 {[%emt 0:00:32]} 18. Bb2 {[%emt 0:00:04]} Ra8 {[%emt 0:01:00]} 19. e4 {[%emt 0:00:18]} Rb8 {[%emt 0:01:27]} 20. Rfd1 {[%emt 0:08:57]} Be7 {[%emt 0:02:08]} 21. exd5 {[%emt 0:03:45]} exd5 {[%emt 0:01:42]} 22. Re1 {[%emt 0:01:54]} Qc7 {[%emt 0:04:44]} 23. Qe2 {[%emt 0:03:08][%cal Oa4b6]} h6 {[%emt 0:00:57]} 24. g3 {[%emt 0:06:07]} Qa7 {[%emt 0:12:20][%cal Re7c5]} (24... Bf6 {is interesting.} 25. Qxe8+ Rxe8 26. Rxe8+ Kh7) 25. Bd4 {[%emt 0:01:38]} Bf6 {[%emt 0:02:00]} 26. Qxe8+ {[%emt 0:01:16]} (26. Qd3 $11) 26... Rxe8 $17 {[%emt 0:01:03]} 27. Rxe8+ {[%emt 0:00:02]} Kh7 {[%emt 0:00:06]} 28. Bxf6 {[%emt 0:02:16]} Nxf6 {[%emt 0:00:10][%cal Bd7f6,Bf6e4,Be4d2][%mdl 32]} 29. Ree1 {[%emt 0:02:47]} Qd7 {[%emt 0:01:36][%mdl 1024] Black has strong compensation.} 30. Nc3 {[%emt 0:03:18] [#]} (30. f3 $17 {is a better defense.}) 30... Qf5 $1 $19 {[%emt 0:00:36] ...d4 is the strong threat.} 31. Ne2 {[%emt 0:05:52]} (31. Rf1 $17 {was necessary.}) 31... Ne4 {[%emt 0:03:32]} 32. Rf1 {[%emt 0:02:54]} (32. Nf4 $142) 32... Nd2 {[%emt 0:00:55]} 33. Rfd1 {[%emt 0:01:04]} Nf3+ {[%emt 0:01:48]} 34. Kg2 {[%emt 0:00:01]} Qe4 {[%emt 0:01:41] Against Nd4. ( -> ...Nh4+)} 35. Ng1 {[%emt 0:02:10]} ({Don't go for} 35. Nf4 $2 Nd4+ 36. Kg1 g5 $19) (35. Nc3 $142 Nh4+ 36. Kf1 (36. Kh3 {gets mated.} Qf5+ 37. g4 Qf3+ 38. Kxh4 g5+ 39. Kh5 Qh3#) 36... Qh1+ 37. Ke2 Qf3+ 38. Kf1) 35... Ne5+ {[%emt 0:02:02]} 36. f3 {[%emt 0:00:22] [#]} Nxf3 {[%emt 0:00:55][%mdl 576] Deflection, Decoy} 37. Nxf3 {[%emt 0:00:07] aiming for Kf2.} Qe2+ {[%emt 0:00:04][%mdl 64] Deflection, Double Attack} 38. Kh3 {[%emt 0:01:02] And now Nd4 would win.} Qxf3 {[%emt 0:00:17][%mdl 4096] Endgame KQ-KRR} 39. Rf1 {[%emt 0:00:11]} Qh5+ {[%emt 0:02:41]} 40. Kg2 {[%emt 0:00:02]} Qe2+ {[%emt 0:00:08]} 41. Rf2 {[%emt 0:31:36]} Qe4+ {[%emt 0:30:12]} 42. Kg1 {[%emt 0:00:00]} f6 {[%emt 0:00:00]} ({Better is} 42... h5 $19 43. Rcc2 h4) 43. Rcc2 $17 {[%emt 0:00:00]} h5 {[%emt 0:00:00]} 44. h4 {[%emt 0:00:00]} Kg6 {[%emt 0:00:00]} 45. Kh2 {[%emt 0:00:00]} Qb4 {[%emt 0:00:00]} 46. Rf4 {[%emt 0:00:00]} Qe1 {[%emt 0:00:00]} 47. Ra4 {[%emt 0:00:00]} Qd1 {[%emt 0:00:00]} 48. Rg2 {[%emt 0:00:00]} Qe1 {[%emt 0:00:00]} (48... Qd3 $15 49. Rxa5 Qc3) 49. a3 $2 {[%emt 0:00:00]} (49. Rc2 $1 $11) 49... Qd1 $19 {[%emt 0:00:00]} 50. Rxa5 {[%emt 0:00:00]} Qxb3 {[%emt 0:00:00] Hoping for ...Qc3.} 51. Ra7 $2 {[%emt 0:00:00]} (51. Ra8) 51... Qc3 {[%emt 0:00:00]} 52. a4 {[%emt 0:00:00]} Qxc5 {[%emt 0:00:00]} 53. Ra8 {[%emt 0:00:00]} (53. Ra6 {keeps fighting.}) 53... d4 {[%emt 0:03:50][%cal Bd5d4,Bd4d3,Bd3d2][%mdl 32]} 54. a5 {[%emt 0:00:00]} Qd6 {[%emt 0:03:28] Inhibits Rd8.} 55. a6 {[%emt 0:00:00] [#]} c5 $1 {[%emt 0:00:27] Strongly threatening ...Qc6.} 56. Rc8 {[%emt 0:03:53] Against Qc6} (56. a7 $142 Qa6 57. Rb2) 56... Qb6 {[%emt 0:01:35] Threatens to win with ...d3.} 57. Rc2 {[%emt 0:04:21]} d3 {[%emt 0:00:36]} 58. Rd2 {[%emt 0:00:57]} Qa5 {[%emt 0:00:07]} 59. Rg2 {[%emt 0:00:22]} d2 {[%emt 0:00:51]} 60. Rg1 {[%emt 0:00:45]} Qxa6 {[%emt 0:00:23] Weighted Error Value: White=0.50/Black=0.09 (flawless)} 0-1

[Event "44th Chess Olympiad Open 2022"]
[Site "Chennai"]
[Date "2022.08.08"]
[Round "10.7"]
[White "Volokitin, Andrei"]
[Black "Berkes, Ferenc"]
[Result "1/2-1/2"]
[ECO "B03"]
[WhiteElo "2674"]
[BlackElo "2649"]
[Annotator "TA"]
[PlyCount "64"]
[EventDate "2022.07.29"]
[EventType "team-tourn"]
[EventCountry "IND"]
[SourceTitle "playchess.com"]
[Source "ChessBase"]
[SourceQuality "1"]
[WhiteTeam "Ukraine"]
[BlackTeam "Hungary"]
[WhiteTeamCountry "UKR"]
[BlackTeamCountry "HUN"]
[TimeControl "40/5400+30:1800+30"]

{[%evp 19,64,32,39,31,34,33,33,12,17,8,10,0,0,0,0,0,0,0,0,0,0,0,0,0,0,0,0,0,0,0,0,0,0,0,0,0,0,0,0,0,0,0,0,0,0,0,0]} 1. e4 {[%emt 0:00:03][%cal Be2e4,Be4e5][%mdl 32]} Nf6 {[%emt 0:00:09]} 2. e5 {[%emt 0:00:09]} Nd5 {[%emt 0:00:05]} 3. d4 {[%emt 0:00:12]} d6 {[%emt 0:00:05]} 4. c4 {[%emt 0:00:08]} Nb6 {[%emt 0:00:06]} 5. exd6 {[%emt 0:00:04]} exd6 {[%emt 0:00:05]} 6. Nc3 {[%emt 0:00:06]} Nc6 {[%emt 0:00:14]} 7. Nf3 {[%emt 0:00:18]} Be7 {[%emt 0:00:15]} 8. h3 {[%emt 0:00:27]} O-O {[%emt 0:00:14]} 9. Bd3 $1 {[%emt 0:00:39][%mdl 4] now scores much better than the old 9.Be2.} Re8 {[%emt 0:00:17]} 10. O-O {[%emt 0:01:33]} Bf6 {[%emt 0:00:10]} 11. Be3 {[%emt 0:33:34] B03: Alekhine's Defence: Four Pawns Attack.} d5 {[%emt 0:04:53]} 12. c5 {[%emt 0:11:48]} Nc4 {[%emt 0:00:12]} 13. Bxc4 {[%emt 0:02:27] White is slightly better.} dxc4 {[%emt 0:01:10] The position is equal.} 14. Qa4 {[%emt 0:00:07]} Be6 {[%emt 0:09:04]} 15. Rad1 {[%emt 0:00:10] [#] Strongly threatening d5.} Ne7 {[%emt 0:10:21] [#] Against d5} 16. Nd2 $146 {[%emt 0:12:30]} ({Predecessor:} 16. Ne5 c6 17. Rfe1 Nd5 18. Ne4 b5 19. Qa3 Qc7 20. Bd2 a5 21. Qg3 Be7 22. Bh6 {0-1 (68) Greig,S (2223)-Sarakenidis,N (2306) ICCF email 2016}) 16... c6 {[%emt 0:06:18]} ({Don't take} 16... Bxd4 17. Nxc4 Bd7 18. Rxd4 $16) 17. Nxc4 {[%emt 0:06:47] Pair of Knights!} b5 {[%emt 0:00:17]} 18. cxb6 $1 {[%emt 0:00:08]} axb6 {[%emt 0:00:07]} 19. Qb4 {[%emt 0:00:03]} Nd5 {[%emt 0:08:22]} 20. Nxd5 {[%emt 0:00:07]} Bxd5 {[%emt 0:00:11]} 21. a3 {[%emt 0:03:25]} b5 {[%emt 0:01:50]} 22. Ne5 {[%emt 0:00:19]} Bxe5 {[%emt 0:00:30]} 23. dxe5 {[%emt 0:00:04]} Rxe5 {[%emt 0:00:10]} 24. Rfe1 {[%emt 0:11:58]} h6 {[%emt 0:04:20]} 25. Bf4 {[%emt 0:01:23]} Rxe1+ {[%emt 0:02:47]} 26. Rxe1 {[%emt 0:00:04]} Qf6 {[%emt 0:04:06] [#] ...Ra4 is the strong threat.} 27. Be5 {[%emt 0:00:16]} Qg6 {[%emt 0:00:59][%csl Gd5][%cal Rg6g2]} 28. Qg4 {[%emt 0:00:07]} Qxg4 {[%emt 0:00:25]} 29. hxg4 {[%emt 0:00:02]} Re8 {[%emt 0:00:47]} 30. f3 {[%emt 0:00:08]} f6 {[%emt 0:00:06]} 31. Bc3 {[%emt 0:00:04]} Rxe1+ {[%emt 0:00:05]} 32. Bxe1 {[%emt 0:00:02]} Kf7 {[%emt 0:00:07] Weighted Error Value: White=0.02 (flawless) /Black=0.00 (flawless)} 1/2-1/2

[Event "44th Chess Olympiad Open 2022"]
[Site "Chennai"]
[Date "2022.08.08"]
[Round "10.7"]
[White "Onyshchuk, Volodymyr"]
[Black "Kantor, Gergely"]
[Result "1-0"]
[ECO "C82"]
[WhiteElo "2612"]
[BlackElo "2582"]
[Annotator "TA"]
[PlyCount "55"]
[EventDate "2022.07.29"]
[EventType "team-tourn"]
[EventCountry "IND"]
[SourceTitle "playchess.com"]
[Source "ChessBase"]
[SourceQuality "1"]
[WhiteTeam "Ukraine"]
[BlackTeam "Hungary"]
[WhiteTeamCountry "UKR"]
[BlackTeamCountry "HUN"]
[TimeControl "40/5400+30:1800+30"]

{[%evp 18,55,17,0,0,-16,-11,-17,-5,-27,33,0,0,-3,0,0,39,26,35,44,58,53,33,37,173,156,911,916,851,856,29993,29994,29994,29995,29996,29997,29997,29998,29998,29999]} 1. e4 {[%emt 0:00:04] ChessBase} e5 {[%emt 0:00:05]} 2. Nf3 {[%emt 0:00:04]} Nc6 {[%emt 0:00:04]} 3. Bb5 {[%emt 0:00:17]} a6 {[%emt 0:00:23]} 4. Ba4 {[%emt 0:00:05]} Nf6 {[%emt 0:00:03]} 5. O-O {[%emt 0:00:05]} Nxe4 {[%emt 0:00:10]} 6. d4 {[%emt 0:02:48]} b5 {[%emt 0:00:16]} 7. Bb3 {[%emt 0:00:07]} d5 {[%emt 0:00:03]} 8. dxe5 {[%emt 0:01:04]} Be6 {[%emt 0:00:25]} 9. c3 {[%emt 0:03:23]} Bc5 {[%emt 0:00:13]} 10. a4 {[%emt 0:14:21] aiming for axb5.} O-O {[%emt 0:09:58] C82: Open Ruy Lopez: 9 c3 without 9...Be7.} 11. axb5 {[%emt 0:07:38]} axb5 {[%emt 0:00:31]} 12. Rxa8 {[%emt 0:00:04]} Qxa8 {[%emt 0:00:16] The position is equal.} 13. Nbd2 {[%emt 0:06:34][%cal Bb1d2,Bd2f1,Bf1g3][%mdl 32]} ({Don't blunder} 13. Bxd5 $2 Nxf2 14. Rxf2 Rd8 $19) 13... Rd8 {[%emt 0:45:21]} (13... Nxf2 $11 14. Rxf2 Qa7) 14. Qe2 {[%emt 0:06:15] [#]} Nxf2 $146 {[%emt 0:04:22]} ({Predecessor:} 14... Nxd2 15. Bxd2 Be7 16. Bc2 Bg4 17. Bf4 b4 18. h3 Be6 19. Ng5 Bxg5 20. Bxg5 Rd7 {0-1 (49) Showalter,J-Albin,A New York 1893 HCL [ChessBase]}) 15. Rxf2 {[%emt 0:01:10][%cal Oe2b5]} Qa1 {[%emt 0:00:22]} 16. Qe1 {[%emt 0:04:09][%cal Ob3c2]} Bf5 {[%emt 0:15:42] [#] Inhibits Bc2.} 17. Nf1 $1 {[%emt 0:09:49] Threatens to win with Be3.} Bxf2+ {[%emt 0:00:42]} 18. Kxf2 {[%emt 0:00:08]} Be4 {[%emt 0:04:41]} 19. e6 {[%emt 0:15:59] exf7+ is the strong threat.} fxe6 {[%emt 0:01:50]} 20. Ng3 {[%emt 0:00:03]} Na5 {[%emt 0:08:07] [#]} (20... Rf8 $14 21. Nxe4 dxe4) 21. Bc2 $1 $18 {[%emt 0:00:59]} Bxc2 $2 {[%emt 0:01:08] This costs Black the game.} (21... Nc4 $16) 22. Qxe6+ {[%emt 0:00:05]} Kh8 {[%emt 0:02:24] [#]} 23. Bh6 $1 {[%emt 0:00:09][%cal Oh6g7][%mdl 512] White wants to mate with Bxg7+!} Rg8 {[%emt 0:02:03] [#]} (23... Bg6 24. Bxg7+) 24. Bxg7+ $1 {[%emt 0:00:53][%mdl 576] Decoy. White mates.} Kxg7 {[%emt 0:00:27]} (24... Rxg7 25. Qe8+) 25. Qe7+ {[%emt 0:00:28]} Kh6 {[%emt 0:00:38]} 26. Qf6+ {[%emt 0:00:08]} Rg6 {[%emt 0:01:53]} 27. Qf8+ {[%emt 0:00:05]} Rg7 {[%emt 0:00:50]} 28. Qf4+ {[%emt 0:00:03] Weighted Error Value: White=0.05 (flawless) /Black=0.65} 1-0